Cogmind - Beta 14 --- EXPLORER MODE // 2025.01.15 @ 09:41:16 Player: Sanders!!! Result: Destroyed by as-29379 with Assembled Rifle Performance ------------- Evolutions (0) 0 Regions Visited (2) 400 Robots Destroyed (6) 30 Value Destroyed (170) 170 Prototype IDs (0) 0 Alien Tech Used (0) 0 Bonus (0) 0 TOTAL SCORE: 600 Bonus ------- None Cogmind --------- Core Integrity 0/250 Matter 266/300 Energy 134/250 System Corruption 0% Temperature Hot (257) Movement Walking (260) Ox2 Location -10/Mines Parts ------- > --- POWER (1) -------- Ion Engine > --- PROPULSION (2) --- Aluminum Leg > --- UTILITY (3) ------ Large Storage Unit > --- WEAPON (2) ------- Beam Cannon > --- INVENTORY (15) --- Huge Storage Unit Large Matter Pod (84) Structural Scanner Signal Interpreter Light Assault Rifle Peak State ------------ > --- POWER ------------ Ion Engine > --- PROPULSION ------- Aluminum Leg Aluminum Leg > --- UTILITY ---------- Medium Storage Unit Large Storage Unit Light Armor Plating > --- WEAPON ----------- Small Laser Light Assault Rifle > --- INVENTORY -------- Ion Engine Structural Scanner Signal Interpreter Beam Cannon [Rating: 8] Favorites ----------- Power Ion Engine Engine Ion Engine Propulsion Aluminum Leg Leg Aluminum Leg Utility Light Armor Plating Storage Large Storage Unit Protection Light Armor Plating Weapon Small Laser Energy Gun Small Laser Energy Cannon Beam Cannon Ballistic Gun Assault Rifle Build | -11 -10 -10 ------- Run | Yrd Mat Min Slots Evolved 1 | . 1 . Power . | . . . Propulsion . | . . . Utility 1 | . 1 . Weapon . | . . . Parts Attached 13 | 7 2 4 Power 2 | 1 . 1 Engine 2 | 1 . 1 Core . | . . . Reactor . | . . . Propulsion 3 | 2 . 1 Treads . | . . . Leg 3 | 2 . 1 Wheel . | . . . Hover . | . . . Flight . | . . . Utility 3 | 2 1 . Device . | . . . Storage 2 | 1 1 . Processor . | . . . Hackware . | . . . Protection 1 | 1 . . Artifact . | . . . Weapon 5 | 2 1 2 Energy Gun 1 | 1 . . Energy Cannon 1 | . . 1 Ballistic Gun 3 | 1 1 1 Ballistic Cannon . | . . . Launcher . | . . . Special Weapon . | . . . Impact Weapon . | . . . Slashing Weapon . | . . . Piercing Weapon . | . . . Special Melee Weapon . | . . . Unidentified Prototypes . | . . . Parts Lost 6 | . . 6 Power 1 | . . 1 Propulsion 2 | . . 2 Utility 1 | . . 1 Weapon 2 | . . 2 Highest Loss Streak 6 | . . 6 To Critical Strikes . | . . . Average Slot Usage (%) 85 | . 87 82 Engine 11 | . 12 11 Leg 24 | . 25 23 Storage 12 | . 12 12 Protection 11 | . 12 10 Energy Gun 11 | . 12 10 Ballistic Gun 11 | . 12 10 Peak Build Rating 8 | 7 8 7 Average Rating 6 | 4 7 6 On Entrance 4 | . 7 7 Naked Turns . | . . . Heaviest Build 31 | 20 31 31 Greatest Support 20 | 20 20 20 Greatest Overweight (x) 2 | . 1 2 Average Overweight (x) . | . . 1 Largest Inventory Capacity 15 | 10 15 15 Average Capacity 14 | 8 14 15 Most Carried 8 | 4 8 8 Average Carried 6 | 2 6 7 Final Capacity 15 | 10 15 15 Final Carried 8 | 3 8 5 Class Distribution -------------------- 100% | Hacker-Mutant Dominant Class ---------------- Hacker-Mutant | -10/Materials Hacker-Mutant | -10/Mines Resources | -11 -10 -10 ----------- Run | Yrd Mat Min Matter Collected 390 | 208 113 69 Remotely . | . . . Salvage Created 183 | . 149 34 Parts 10 | . 9 1 Haulers Intercepted . | . . . Recyclers Shooed . | . . . Parts Field Recycled . | . . . Retrieved Matter . | . . . Parts Self-Destructed . | . . . Prevented . | . . . Kills | -11 -10 -10 ------- Run | Yrd Mat Min Combat Hostiles Destroyed 5 | . 4 1 Guns 4 | . 4 . Cannons 1 | . . 1 Classes Destroyed 4 | . 3 1 Watcher 1 | . 1 . Swarmer 2 | . 2 . Grunt 2 | . 2 . Demolisher 1 | . . 1 Best Kill Streak 3 | . 3 1 Combat Bots Only 2 | . 2 1 Max Kills in Single Turn 1 | . 1 1 Gunslinging . | . . . Exploded . | . . . Melee . | . . . Uniques/NPCs Destroyed . | . . . Combat | -11 -10 -10 -------- Run | Yrd Mat Min Hostile Shots Fired 98 | . 40 58 Missed 24 | . 12 12 Damage Taken 956 | . 164 792 Core 253 | . 21 232 Absorbed by Shields . | . . . Ignored by Resistances 579 | . 112 467 Core Remaining (%) 100 | 100 . . Volleys Fired 30 | . 15 15 Largest 2 | . 2 2 Hottest 100 | . 60 100 Shots Fired 55 | . 30 25 Gun 40 | . 30 10 Cannon 15 | . . 15 Launcher . | . . . Special . | . . . Kinetic 18 | . 15 3 Thermal 37 | . 15 22 Explosive . | . . . Electromagnetic . | . . . Robot Hit Streak 37 | . 19 37 Robot Miss Streak 2 | . 1 2 Penetration Max . | . . . Secondary Targets 1 | . 1 . Max Gunslinging Chain 1 | . 1 . Shots Hit Robots 47 | . 24 23 Core Hits 15 | . 9 6 Critical Kills . | . . . Critical Parts Destroyed . | . . . Critical Strikes . | . . . Melee Attacks . | . . . Impact . | . . . Slashing . | . . . Piercing . | . . . Sneak Attacks . | . . . Combat Hostiles . | . . . Follow-up Attacks . | . . . Damage Inflicted 601 | . 257 344 Guns 358 | . 257 101 Cannons 243 | . . 243 Explosions . | . . . Melee . | . . . Ramming . | . . . Kinetic 155 | . 133 22 Thermal 446 | . 124 322 Explosive . | . . . Electromagnetic . | . . . Impact . | . . . Slashing . | . . . Piercing . | . . . Highest Corruption . | . . . Average Corruption . | . . . Corruption Purged . | . . . Corruption Blocked . | . . . Overload Shots . | . . . Overflow Damage 8 | . . 8 Projectiles 8 | . . 8 Explosions . | . . . Melee . | . . . Knockbacks . | . . . Impact . | . . . Kinetic . | . . . Secondary . | . . . Self-Inflicted Damage . | . . . Shots . | . . . Rammed . | . . . Targets Rammed . | . . . Kicked . | . . . Crushed . | . . . Highest Temperature 316 | . 114 316 Average Temperature 120 | . 44 218 Received Heat Transfer 72 | . 72 . Effects 1 | . . 1 Interference 1 | . . 1 Siege Activations . | . . . Robots Corrupted . | . . . Combat Hostiles . | . . . Parts Fried . | . . . Impact Corruptions . | . . . Robots Melted . | . . . Combat Hostiles . | . . . Parts Melted 1 | . . 1 Heat Transferred 968 | . 275 693 Parts Sabotaged . | . . . Parts Stolen . | . . . Parts Stripped . | . . . Power Chain Reactions . | . . . Alert | -11 -10 -10 ------- Run | Yrd Mat Min Peak Influence 122 | . 122 30 Initial . | . . . Average 26 | . 42 1 Maximum Alert Level . | . . . Low Security (%) 100 | 100 100 100 Level 1 . | . . . Level 2 . | . . . Level 3 . | . . . Level 4 . | . . . Level 5 . | . . . High Security . | . . . Max Security . | . . . Squads Dispatched . | . . . Investigation . | . . . Extermination . | . . . Reinforcement . | . . . Assault . | . . . Garrison . | . . . Intercept . | . . . Searches Triggered . | . . . Construction Impeded . | . . . Haulers Reinforced . | . . . Active Scanning Responses . | . . . Cargo Convoy Interrupts . | . . . Stealth | -11 -10 -10 --------- Run | Yrd Mat Min Distress Signals . | . . . Communications Jammed . | . . . Distress Signals . | . . . Times Spotted 15 | . 7 8 Peak Tracking Total 7 | . 2 7 Tactical Retreats 1 | . . 1 Traps | -11 -10 -10 ------- Run | Yrd Mat Min Traps Triggered . | . . . Indirectly . | . . . Trap Hack Attempts . | . . . Triggered . | . . . Disarmed . | . . . Reprogrammed . | . . . Reused . | . . . Traps Extracted . | . . . Installed . | . . . Triggered . | . . . Machines | -11 -10 -10 ---------- Run | Yrd Mat Min Machines Disabled . | . . . Max in Single Turn . | . . . Machines Repaired . | . . . Machines Dismantled . | . . . Machines Sabotaged . | . . . Overloaded Fab Kills . | . . . Hacking | -11 -10 -10 --------- Run | Yrd Mat Min Machines Accessed 2 | . 2 . Terminals 2 | . 2 . Fabricators . | . . . Repair Stations . | . . . Recycling Units . | . . . Scanalyzers . | . . . Garrison Access . | . . . Total Hacks 4 | . 4 . Successful 3 | . 3 . Failed 1 | . 1 . Catastrophic . | . . . Database Lockouts . | . . . Manual . | . . . Terminals 4 | . 4 . Fabricators . | . . . Repair Stations . | . . . Recycling Units . | . . . Scanalyzers . | . . . Garrison Access . | . . . Terminal Hacks 3 | . 3 . Robot Analysis 1 | . 1 . Emergency Access Points 1 | . 1 . Dispatch Records 1 | . 1 . Fabricator Hacks . | . . . Repair Station Hacks . | . . . Recycling Unit Hacks . | . . . Scanalyzer . | . . . Garrison Access Hacks . | . . . Unauthorized Hacks . | . . . Terminals . | . . . Fabricators . | . . . Repair Stations . | . . . Recycling Units . | . . . Scanalyzers . | . . . Garrison Access . | . . . Data Cores Recovered . | . . . Used . | . . . Hacking Detections 2 | . 2 . Full Trace Events . | . . . Feedback Events . | . . . Feedback Blocked . | . . . Robot Schematics Acquired . | . . . Robots Built . | . . . Authchips . | . . . Time . | . . . Total Robot Build Rating . | . . . Part Schematics Acquired . | . . . Parts Built . | . . . Authchips . | . . . Time . | . . . Total Part Build Rating . | . . . Parts Repaired . | . . . Time . | . . . Parts Recycled . | . . . Recycled Matter . | . . . Retrieved Matter . | . . . Retrieved Components . | . . . Parts Scanalyzed . | . . . Part Schematics Acquired . | . . . Parts Damaged . | . . . Bothacking | -11 -10 -10 ------------ Run | Yrd Mat Min Used RIF Installer . | . . . Robots Hacked . | . . . Non-combat . | . . . Combat . | . . . Robot Hacks Applied . | . . . Relay Couplers Released . | . . . Fabnet Peak Effective % . | . . . Robots Rewired . | . . . Allies Hacked . | . . . Hacks Repelled . | . . . Allies | -11 -10 -10 -------- Run | Yrd Mat Min Total Allies . | . . . Largest Group . | . . . Highest-Rated Group . | . . . Highest-Rated Ally . | . . . Total Orders . | . . . Ally Attacks . | . . . Total Damage . | . . . Kills . | . . . Allies Corrupted . | . . . Allies Melted . | . . . Intel | -11 -10 -10 ------- Run | Yrd Mat Min Robot Analysis Total 1 | . 1 . Derelict Logs Recovered . | . . . Drone Launches . | . . . Drone Recoveries . | . . . Exploration | -11 -10 -10 ------------- Run | Yrd Mat Min Turns Passed 979 | 66 597 316 Spaces Moved 484 | 44 300 140 Core 8 | 8 . . Treads . | . . . Legs 476 | 36 300 140 Wheels . | . . . Hover . | . . . Flight . | . . . Fastest Speed 50 | 50 120 190 Average Speed 175 | 107 178 190 Slowest Speed 260 | 120 190 260 Overloaded Moves . | . . . Propulsion Burnouts . | . . . Robots Hopped . | . . . Cave-ins Triggered . | . . . Exploration Rate (%) 33 | 5 47 47 Regions Visited 2 Branch Regions 1 Pre-discovered Areas . | . . . Known Exits Taken 2 | 1 1 . Unknown Exits Taken . | . . . Scrap Searched . | . . . Spaces Dug . | . . . Terrain Destroyed . | . . . Melee . | . . . Projectile . | . . . AOE . | . . . Terrain Rammed . | . . . Walls Destroyed . | . . . Machines Disabled . | . . . Actions | -11 -10 -10 --------- Run | Yrd Mat Min Total 562 | 63 334 165 Wait 20 | 3 11 6 Move 482 | 43 299 140 Hop . | . . . Pick Up 16 | 10 6 . Fast Attach . | . . . Attach 11 | 7 1 3 Detach . | . . . Swap 2 | . 1 1 Drop 1 | . 1 . Fire 30 | . 15 15 Melee . | . . . Ram . | . . . Kick . | . . . Crush . | . . . Escape Stasis . | . . . Rewire . | . . . Trap . | . . . Miscellaneous . | . . . Route ------- -11/Scrapyard -10/Materials (discovered 2 exits: *Mat / *Min) -10/Mines (discovered 1 exit: *Mat) History --------- Turn | Location | Event 8 | -11/Scrapyard | Identified exit to Materials 8 | -11/Scrapyard | Discovered exit to Materials (range 16) 67 | -11/Scrapyard | Entered Materials 67 | -10/Materials | Evolved 1 slot: Utility x1 301 | -10/Materials | Build established: Hacker-Mutant 389 | -10/Materials | Identified exit to Mines 389 | -10/Materials | Discovered exit to Mines (range 8) 485 | -10/Materials | Identified exit to Materials 485 | -10/Materials | Discovered exit to Materials (range 13) 664 | -10/Materials | Entered Mines 828 | -10/Mines | Discovered exit to Materials (range 15) 917 | -10/Mines | Assembled infested the area 958 | -10/Mines | Core integrity fell below 50% 963 | -10/Mines | Core integrity fell below 20% 980 | -10/Mines | Destroyed by as-29379 with Assembled Rifle Last Messages --------------- 00966_ U-05 Engineer builds a Wall. 00966_ U-05 Engineer lays Concrete. 00967_ U-05 Engineer builds a Wall. 00968_ The unstable cave ceiling collapses. 00970_ U-05 Engineer builds a Wall. 00971_ U-05 Engineer lays Concrete. 00972_ Destroyed Shock Absorption System. 00972_ U-05 Engineer builds a Wall. 00974_ U-05 Engineer lays Concrete. 00975_ Overheating: System interference. 00975_ Assault Rifle temporarily disabled. 00975_ U-05 Engineer lays Concrete. 00976_ The unstable cave ceiling collapses. 00976_ Assault Rifle destroyed. 00976_ U-05 Engineer lays Concrete. 00977_ The unstable cave ceiling collapses. 00977_ U-05 Engineer builds a Wall. 00977_ R-06 Scavenger destroyed. 00977_ U-05 Engineer destroyed. 00977_ U-05 Engineer builds a Wall. Map ----- +----------------------------------------------------+ | | | | | | | | | | | ?????????????????????????????????????????????????? | | ??????????????????####???????????????????????????? | | ?????????????????## ##??????????????????????????? | | ?????????????????# ##?????????????????????????? | | ?????????????????# #?????????????????????????? | | ?????????????????# #?????####????????????????? | | ?????????????????# ##????## ##???????????????? | | ?????????????????## ##????## ###?####????????? | | ??????????????????# ##???### ## #????????? | | ?????????####?????# #???## #????????? | | ?????????# ##????# #???# #?????????? | | ??######## #????# #???# #??????????? | | ??# ## #????# ###?# #??????????? | | ??# < ## #????# ### ######## #?? | | ??# ## ######## a% | | ??# ## a | | ??# ######### ##### #########?????? | | ??#### ##???????# ### # a ##?????????????? | | ?????# #????????# ## #??????????????? | | ?????# #????????# #### =% #??????????????? | | ?????# ##???????# %!%= @ ###????????????? | | ????## ###?????# %d=! ##???????????? | | ???## ##????##### #???????????? | | ???# #??????#### #u #???????????? | | ???# ##???????## ## ##???????????? | | ???# #????????######### ##????????????? | | ???# #??????????????## ##?????????????? | | ???## #??????????????# ##?????????????? | | ????# ##??????????????# ########### | | ????# ##???????????????# | | ????# ##???????????????## | | ????## ##???????????????#### ###########??? | | ????## ##?????????????????## #????????????? | | ????# ####???????????????# #????????????? | | ????# ##???????######?# #????????????? | | ????## #### #??????## ### #????????????? | | ?????###???## #?????## #????????????? | | ???????????## ##????# #### #????????????? | | ??????????## ##???# ##??# #????????????? | | ?????????## #???# ##???# #????????????? | | ????????## #???## #????# #????????????? | | ????????# #???## #????# ##???????????? | | ????????# #???# ####### #???????????? | | ????????# ## ##?## #??????????? | | ????????# #### ### ???????? | +----------------------------------------------------+ Best States ------------- Heat Dissipation 25 Energy Generation 10 Energy Capacity 250 Matter Stores 300 Matter Capacity 300 Sight Range 16 Terrain Scan Density 10 Armor Coverage 150 Resistance: KI 35 Resistance: TH 35 Resistance: EX 35 Resistance: EM 35 Resistance: I 35 Resistance: S 35 Resistance: P 35 Evasion (%) 55 Offensive Hacking 20 Item Schematics ----------------- None Robot Schematics ------------------ None Fabricated ------------ Nothing Alien Tech Used ----------------- None Achievements -------------- None Challenges ------------ None Game ------ Seed CloakingStealthCorpse Manual? 0 Play Time 00:19:15 Cumulative 22.9 hours Start 2025.01.15 @ 09:21:43 End 2025.01.15 @ 09:41:16 Sessions 1 Manual Loads 0 Difficulty Explorer Special Mode None Game No. 18 Rogue 11 Adventurer 0 Explorer 7 Win Type - Total 0 Types 0/0/0/0/0/0/0/0/0 Lore% 15 Gallery% 29 Achievement% 30 Wizard Run 0 Options --------- Layout 1 ASCII 0 Keyboard 0 Movement Mouse Keybinds 0 Fullscreen 1 Font 24/Smallcaps Map View 50x35 Zoom Use 0% Tactical HUD 1 Map Filters NONE Filters NONE Steam 1 RUN: f01c7d96-aaec-4393-b95d-58a440f0ba06